bitfinex-derivatives/quotes_ETHF0:USTF0_20250217
["timestamp","ask_amount","ask_price","bid_price","bid_amount"]
[1739834535511,0.58224,2747.6,2747.5,0.5369]
[1739834542615,3.2078,2747.7,2747.5,1.11916]
[1739834542814,3.2078,2747.7,2747.5,1.11915]
[1739834543214,3.79002,2747.7,2747.6,1.1598]
[1739834548413,0.58224,2747.6,2747.5,0.5369]
[1739834548619,0.58228,2747.4,2747.3,0.00546578]
[1739834549321,0.58228,2747.4,2747.3,0.58777578]
[1739834549618,1.15198,2747.5,2747.3,0.58777578]
[1739834550622,1.15198,2747.5,2747.3,0.58775578]
[1739834551215,0.5697,2747.5,2747.3,0.58775578]
[1739834551416,0.58228,2747.4,2747.3,0.00546578]
[1739834551616,0.58228,2747.4,2747.3,0.58776578]
[1739834552621,0.58228,2747.4,2747.3,0.00546578]
[1739834552817,0.5697,2747.5,2747.3,0.00546578]
[1739834553315,3.79008,2747.4,2747.3,0.00546578]
[1739834553522,0.58239,2746.9,2746.8,0.5766]
[1739834554218,2.429,2747.2,2746.8,0.5766]
[1739834554219,0.5564,2747.1,2746.8,0.5766]
[1739834554427,0.5564,2747.1,2746.9,0.58239]
[1739834554721,1.13875,2747.1,2746.9,0.58239]
[1739834555119,0.58237,2747.0,2746.8,1.159]
[1739834555315,0.58239,2746.9,2746.7,0.00546578]
[1739834555522,0.58241,2746.8,2746.7,0.00546578]
[1739834555724,3.01141,2746.8,2746.7,0.00546578]
[1739834557618,2.429,2746.8,2746.7,0.00546578]
[1739834558425,3.01141,2746.8,2746.7,0.00546578]
[1739834561627,3.01141,2746.8,2746.7,0.58789578]
[1739834561927,3.01141,2746.8,2746.7,0.00546578]
[1739834574133,0.58241,2746.8,2746.7,0.00546578]
[1739834574437,3.01141,2746.8,2746.7,0.00546578]
[1739834574834,1.1128,2746.9,2746.7,0.58789578]
[1739834575027,9.20217,2747.0,2746.8,1.1095]
[1739834575335,8.6198,2747.0,2746.9,0.58239]
[1739834575533,0.00546578,2747.2,2747.1,0.58235]
[1739834577237,0.00546578,2747.2,2747.1,1.67635]
[1739834581941,0.00546578,2747.2,2746.8,3.7349]
[1739834582142,5.64126578,2747.2,2746.8,3.7349]
[1739834582347,0.58241,2746.8,2746.7,0.00546578]
[1739834582940,3.2078,2746.9,2746.7,0.58788578]
[1739834583651,3.2078,2746.9,2746.7,0.00546578]
[1739834583850,3.7902,2746.9,2746.7,0.00546578]
[1739834585346,0.58241,2746.8,2746.7,0.00546578]
[1739834586249,3.79021,2746.9,2746.7,0.00546578]
[1739834586954,3.2078,2746.9,2746.7,0.58788578]
[1739834587139,3.01037,2747.0,2746.7,0.58788578]
[1739834587753,0.58239,2746.9,2746.7,0.58788578]
[1739834588248,2.428,2747.0,2746.8,0.5824]
[1739834588447,2.428,2747.0,2746.7,0.00546578]
[1739834588646,0.58239,2746.9,2746.7,0.58788578]
[1739834589954,3.01038,2747.0,2746.8,0.58241]
[1739834590151,2.428,2747.0,2746.8,0.58241]
[1739834590347,6.34394062,2747.2,2746.7,0.00546578]
[1739834590348,3.79559578,2747.2,2747.0,0.58236]
[1739834590552,0.00546578,2747.2,2747.1,0.58235]
[1739834593151,0.00546578,2747.2,2747.0,1.116]
[1739834593352,0.00546578,2747.2,2747.0,1.69836]
[1739834593555,0.00546578,2747.2,2747.0,1.116]
[1739834593748,0.00546578,2747.2,2747.1,0.58235]
[1739834594149,0.00546578,2747.2,2747.0,1.116]
[1739834594349,0.00546578,2747.2,2747.0,1.69837]
[1739834594646,0.00546578,2747.2,2747.0,1.116]
[1739834594851,0.00546578,2747.2,2747.1,0.58235]
[1739834597550,0.00546578,2747.2,2747.0,1.69836]
[1739834597950,0.00546578,2747.2,2747.1,0.58235]
[1739834599954,0.00546578,2747.2,2747.1,6.58235]
[1739834600160,0.5668,2748.1,2747.1,9.50035]
[1739834600357,1.69714,2748.1,2747.8,0.58218]
[1739834601057,1.69714,2748.1,2747.6,1.0734]
[1739834601363,0.5482,2748.1,2747.6,1.0734]
[1739834601654,0.58216,2748.0,2747.8,0.58218]
[1739834601859,1.13035,2748.1,2747.8,0.58218]
[1739834602256,1.13035,2748.1,2747.6,1.0734]
[1739834602455,0.5482,2748.1,2747.9,0.58216]
[1739834602661,0.5482,2748.1,2747.6,1.0734]
[1739834602962,1.13034,2748.1,2747.9,0.58216]
[1739834603163,0.5482,2748.1,2747.6,1.0734]
[1739834603459,0.5482,2748.1,2747.9,0.58216]
[1739834604360,0.5482,2748.1,2747.6,1.0734]
[1739834604555,0.5482,2748.1,2748.0,0.58216]
[1739834604756,3.2078,2748.2,2747.6,1.0734]
[1739834604757,3.2078,2748.2,2748.1,0.58214]
[1739834610359,3.78992,2748.2,2748.0,0.58215]
[1739834610561,4.35292,2748.2,2748.0,0.58215]
[1739834611266,3.7708,2748.2,2747.7,5.6338]
[1739834611465,3.7708,2748.2,2748.1,0.58214]
[1739834611764,3.7708,2748.2,2748.0,0.58214]
[1739834611967,3.7708,2748.2,2748.1,0.58214]
[1739834612166,3.7708,2748.2,2747.7,5.6338]
[1739834612366,3.7708,2748.2,2748.1,0.58214]
[1739834612555,0.563,2748.2,2748.1,0.58214]
[1739834612959,0.563,2748.2,2747.7,5.6338]
[1739834613155,1.14511,2748.2,2748.0,0.58214]
[1739834613867,0.563,2748.2,2748.0,0.58214]
[1739834614166,0.563,2748.2,2748.1,0.58214]
[1739834614968,0.5772,2748.4,2748.3,0.58209]
[1739834615463,0.58201,2748.7,2748.5,0.58203]
[1739834615761,1.14111,2748.7,2748.5,0.58203]
[1739834615967,0.58203,2748.6,2748.5,0.58203]
[1739834616266,0.5591,2748.7,2748.5,0.58203]
[1739834616460,0.5591,2748.7,2748.6,0.58203]
[1739834616660,0.5591,2748.7,2748.2,0.546]
[1739834616858,0.58208,2748.4,2748.2,0.58211]
[1739834617065,1.14479,2748.3,2748.1,0.58758578]
[1739834617264,0.58211,2748.2,2748.1,0.00546578]
[1739834617461,0.5627,2748.3,2748.2,0.58211]
[1739834617862,0.5627,2748.3,2748.1,0.58759578]
[1739834618062,0.5627,2748.3,2748.1,0.00546578]
[1739834618463,0.5627,2748.3,2748.2,0.58211]
[1739834619063,0.58205,2748.5,2748.3,0.58208]
[1739834619570,0.58207,2748.5,2748.3,0.58208]
[1739834620169,3.7583,2748.6,2748.3,0.58208]
[1739834620365,3.7583,2748.6,2748.1,0.00546578]
[1739834620874,0.58211,2748.2,2748.1,0.00546578]
[1739834621265,2.23351,2748.2,2748.1,0.00546578]
[1739834625575,5.44131,2748.2,2748.1,0.00546578]
[1739834625971,4.8592,2748.2,2748.1,0.00546578]
[1739834626169,5.44131,2748.2,2748.1,0.00546578]
[1739834626772,3.7363,2748.2,2748.1,0.58760578]
[1739834627172,3.2078,2748.2,2748.1,0.58760578]
[1739834633674,0.5245,2748.4,2748.1,0.00546578]
[1739834633980,0.5245,2748.4,2748.3,0.58209]
[1739834634276,3.7312,2748.6,2748.5,0.58205]
[1739834634277,4.31324,2748.6,2748.5,0.58205]
[1739834634481,1.10544,2748.6,2748.5,0.58205]
[1739834634685,0.5283,2748.7,2748.2,1.98376]
[1739834634975,0.5283,2748.7,2748.6,0.58203]
[1739834635182,0.5283,2748.7,2748.2,0.5285]
[1739834635576,1.11032,2748.7,2748.2,0.5285]
[1739834635773,0.5283,2748.7,2748.6,0.58203]
[1739834636080,3.2078,2748.9,2748.8,0.58199]
[1739834636478,3.2078,2748.9,2748.7,0.58199]
[1739834636886,3.2078,2748.9,2748.6,0.5285]
[1739834637181,3.2078,2748.9,2748.7,0.582]
[1739834637889,3.78977,2748.9,2748.6,1.11051]
[1739834638182,3.78977,2748.9,2748.6,0.5285]
[1739834638479,3.78977,2748.9,2748.7,0.58201]
[1739834638884,3.2078,2748.9,2748.7,0.58201]
[1739834639285,3.78977,2748.9,2748.7,0.58201]
[1739834639584,3.2078,2748.9,2748.8,0.58199]
[1739834641683,3.2078,2748.9,2748.7,0.582]
[1739834641987,3.2078,2748.9,2748.6,0.5285]
[1739834642182,0.58203,2748.6,2748.4,0.58206]
[1739834642486,0.5761,2748.5,2748.4,0.58206]
[1739834644684,0.5761,2748.5,2748.3,1.15318]
[1739834644888,1.7075,2748.5,2748.4,0.58207]
[1739834645583,1.7075,2748.5,2748.3,0.5711]
[1739834645889,2.28955,2748.5,2748.3,0.5711]
[1739834646096,2.28955,2748.5,2748.3,1.15319]
[1739834646583,5.6318,2748.9,2748.6,0.58202]
[1739834646777,1.1465,2748.8,2748.6,0.58202]
[1739834646984,0.5645,2748.8,2748.7,1.15951]
[1739834647282,1.14649,2748.8,2748.7,0.5775]
[1739834647488,0.58201,2748.7,2748.4,0.58206]
[1739834647787,0.58204,2748.6,2748.3,0.58208]
[1739834648181,0.58204,2748.6,2748.4,0.58207]
[1739834648685,1.1388,2748.8,2748.2,0.5775]
[1739834648889,1.72079,2748.8,2748.6,0.58201]
[1739834649084,1.72079,2748.8,2748.7,1.15951]
[1739834649085,1.1388,2748.8,2748.7,1.15951]
[1739834649393,1.72079,2748.8,2748.7,1.15951]
[1739834649581,1.72079,2748.8,2748.7,0.5775]
[1739834649982,1.72079,2748.8,2748.7,1.15951]
[1739834650186,1.1388,2748.8,2748.7,1.15951]
[1739834650488,1.72079,2748.8,2748.7,1.15951]
[1739834650687,3.2078,2748.9,2748.8,0.58199]
[1739834651090,3.2078,2748.9,2748.8,1.12879]
[1739834653390,1.13043,2749.1,2748.8,0.5468]
[1739834653589,0.5485,2749.1,2749.0,0.58194]
[1739834654285,3.2078,2749.2,2748.8,3.7546]
[1739834654487,3.2078,2749.2,2749.1,0.58192]
[1739834655184,1.6973,2749.5,2749.2,0.58189]
[1739834655387,2.27915,2749.5,2749.3,1.13008]
[1739834655694,2.27914,2749.5,2749.3,0.5482]
[1739834655885,0.58186,2749.4,2749.3,0.5482]
[1739834656294,1.6973,2749.5,2749.3,0.5482]
[1739834656491,2.27914,2749.5,2749.3,1.13008]
[1739834656694,1.6973,2749.5,2749.3,0.5482]
[1739834656893,1.6973,2749.5,2749.3,1.13008]
[1739834657091,1.6973,2749.5,2749.3,0.5482]
[1739834657292,0.58186,2749.4,2749.3,0.5482]
[1739834659186,7.20613053,2749.6,2749.3,0.5482]
[1739834659391,7.20613053,2749.6,2749.5,0.58184]
[1739834660394,7.20613053,2749.6,2749.4,0.5506]
[1739834660590,0.58184,2749.5,2749.3,1.13008]
[1739834660788,0.58184,2749.5,2749.3,1.13007]
[1739834661092,0.58184,2749.5,2749.3,0.5482]
[1739834661492,0.58184,2749.5,2749.3,1.13007]
[1739834661691,7.20613053,2749.6,2749.3,1.13007]
[1739834661896,0.58186,2749.4,2749.3,0.5482]
[1739834662094,7.20613053,2749.6,2749.1,0.58192]
[1739834662390,1.63839,2749.3,2749.0,0.58194]
[1739834662589,0.5784,2749.2,2749.1,0.58192]
[1739834663390,7.20613053,2749.6,2748.9,0.5343]
[1739834663590,1.68335,2749.5,2749.3,0.58187]
[1739834663793,1.1015,2749.5,2749.0,3.13067484]
[1739834663995,1.68335,2749.5,2749.3,0.58187]
[1739834664392,0.5784,2749.5,2749.4,1.11616]
[1739834665194,1.16024,2749.5,2749.4,1.11616]
[1739834665489,0.5784,2749.5,2749.4,1.11616]
[1739834665695,0.5784,2749.5,2749.4,0.5343]
[1739834665884,1.16024,2749.5,2749.4,0.5343]
[1739834675201,0.58191,2749.3,2749.0,3.13067484]
[1739834675390,0.58191,2749.3,2749.2,0.5819]
[1739834676401,0.58188,2749.3,2749.2,0.58189]
[1739834677401,0.5784,2749.5,2749.1,0.5773]
[1739834677701,0.5819,2749.2,2749.1,1.15921]
[1739834678198,3.2078,2749.3,2748.8,3.7847]
[1739834678403,3.2078,2749.3,2748.9,0.5798]
[1739834678404,0.5434,2749.2,2748.9,0.5798]
[1739834678596,1.1142,2749.2,2748.9,0.5798]
[1739834678903,0.58192,2749.1,2748.9,0.5798]
[1739834679301,1.1142,2749.2,2748.9,1.16177]
[1739834679703,0.58192,2749.1,2748.9,1.16177]
[1739834679904,1.1142,2749.2,2748.9,1.16177]
[1739834680103,0.58192,2749.1,2748.9,1.16177]
[1739834680404,0.58194,2749.1,2748.9,1.16177]
[1739834680600,0.58194,2749.0,2748.9,1.16177]
[1739834680903,1.1142,2749.2,2748.9,1.16177]
[1739834681106,0.58194,2749.1,2748.9,1.16176]
[1739834682006,0.58194,2749.0,2748.9,0.5798]
[1739834682303,0.58194,2749.1,2748.9,1.16176]
[1739834683499,1.1142,2749.2,2748.9,1.16176]
[1739834683701,0.58192,2749.1,2748.9,1.16176]
[1739834685406,0.00117626,2749.0,2748.9,1.16176]
[1739834685805,0.58311626,2749.0,2748.9,1.16176]
[1739834686009,0.00117626,2749.0,2748.9,1.16176]
[1739834692517,7.20613053,2749.6,2749.5,0.58184]
[1739834693318,3.2078,2749.6,2749.5,0.58184]
[1739834695821,2.23747,2749.9,2749.4,0.5736]
[1739834696026,2.23747,2749.9,2749.6,0.5818]
[1739834696215,0.58178,2749.8,2749.6,0.5818]
[1739834696523,2.23747,2749.9,2749.6,0.5818]
[1739834696918,0.58179,2749.8,2749.6,0.5818]
[1739834698623,1.6557,2749.9,2749.6,0.5818]
[1739834698823,0.58178,2749.8,2749.6,0.5818]
[1739834699025,0.58178,2749.8,2749.5,0.00545574]
[1739834699227,0.58178,2749.8,2749.6,0.58181]
[1739834699823,1.6557,2749.9,2749.5,0.00545574]
[1739834700035,1.6557,2749.9,2749.7,0.58178]
[1739834700237,2.23747,2749.9,2749.8,0.533]
[1739834701031,3.78952,2750.1,2749.8,1.11476]
[1739834701234,0.58172,2750.1,2749.8,0.533]
[1739834701436,1.6578,2750.2,2749.8,0.533]
[1739834701637,1.6578,2750.2,2750.1,0.58171]
[1739834701834,2.23951,2750.2,2750.0,0.58173]
[1739834702038,0.58173,2750.1,2749.9,1.15555]
[1739834702239,1.6578,2750.2,2749.8,0.533]
[1739834702439,0.58175,2750.0,2749.8,1.11476]
[1739834702940,0.58176,2749.9,2749.7,0.58179]
[1739834703134,0.5743,2749.8,2749.7,0.58179]
[1739834703532,0.5743,2749.8,2749.6,1.15701]
[1739834703833,0.5743,2749.8,2749.6,0.5752]
[1739834704131,1.15608,2749.8,2749.6,0.5752]
[1739834704331,1.0787,2749.7,2749.5,0.00545574]
[1739834704533,1.0787,2749.7,2749.5,0.53665574]
[1739834704740,1.66051,2749.7,2749.5,0.58728574]
[1739834704937,1.66051,2749.7,2749.5,0.58729574]
[1739834705626,1.66051,2749.7,2749.6,0.58182]
[1739834706139,1.66051,2749.7,2749.5,0.58728574]
[1739834706340,0.58182,2749.6,2749.5,0.00545574]
[1739834706543,0.58182,2749.6,2749.5,0.58729574]
[1739834707240,1.66051,2749.7,2749.5,0.58729574]
[1739834707444,1.0787,2749.7,2749.5,0.58729574]
[1739834707742,1.0787,2749.7,2749.5,0.00545574]
[1739834708134,1.0787,2749.7,2749.5,0.58727574]
[1739834708334,1.0787,2749.7,2749.6,0.58182]
[1739834708735,1.0787,2749.7,2749.5,0.00545574]
[1739834708936,1.6605,2749.7,2749.5,0.58727574]
[1739834709136,1.0787,2749.7,2749.6,0.58182]
[1739834709338,1.0787,2749.7,2749.5,0.00545574]
[1739834709542,1.6605,2749.7,2749.5,0.00545574]
[1739834709844,1.6605,2749.7,2749.5,0.58727574]
[1739834710246,1.6605,2749.7,2749.6,0.58182]
[1739834710547,1.0787,2749.7,2749.6,0.58182]
[1739834711444,0.5525,2749.7,2749.6,0.58182]
[1739834712643,1.1343,2749.7,2749.6,0.58182]
[1739834713041,0.5525,2749.7,2749.6,0.58182]
[1739834714643,3.2078,2750.1,2750.0,0.58173]
[1739834714840,0.58163,2750.6,2750.0,1.39720719]
[1739834715044,1.6548,2750.7,2750.2,1.39720719]
[1739834715236,2.2364,2750.7,2750.3,0.58167]
[1739834715547,2.2364,2750.7,2750.4,0.58165]
[1739834715747,1.6548,2750.7,2750.4,0.58165]
[1739834715946,1.6548,2750.7,2750.3,0.58166]
[1739834715947,0.58161,2750.6,2750.3,0.58166]
[1739834716468,0.58163,2750.5,2750.3,0.58166]
[1739834716650,1.6548,2750.7,2750.3,0.58166]
[1739834716951,1.6548,2750.7,2750.4,0.58164]
[1739834717149,1.6548,2750.7,2750.2,1.39720719]
[1739834717349,0.58164,2750.5,2750.3,0.58166]
[1739834717545,0.58164,2750.5,2750.2,1.39720719]
[1739834717546,1.6548,2750.7,2750.2,1.39720719]
[1739834717746,0.58162,2750.6,2750.4,0.58165]
[1739834717945,0.58163,2750.5,2750.3,0.58166]
[1739834718251,1.6548,2750.7,2750.3,0.58166]
[1739834718445,0.58163,2750.6,2750.3,0.58166]
[1739834718748,1.6548,2750.7,2750.3,0.58166]
[1739834718952,0.58163,2750.5,2750.3,0.58166]
[1739834720048,3.2078,2750.5,2749.9,3.2078]
[1739834720253,0.58172,2750.1,2749.9,3.2078]
[1739834720445,1.651,2750.0,2749.8,0.58175]
[1739834720642,5.6278,2750.5,2749.7,0.5307]
[1739834720955,0.58166,2750.4,2750.1,0.5817]
[1739834721150,0.58168,2750.3,2749.9,3.12036466]
[1739834721650,0.5448,2750.2,2750.0,0.58173]
[1739834721849,1.1062,2750.1,2749.9,0.58181]
[1739834722150,2.419,2750.0,2749.5,0.00545574]
[1739834722453,0.58187,2749.6,2749.5,0.00545574]
[1739834722946,1.67957,2749.6,2749.5,0.00545574]
[1739834723355,2.25457,2749.6,2749.5,0.00545574]
[1739834723848,4.67357,2749.6,2749.5,0.00545574]
[1739834727754,0.58195,2749.3,2749.0,0.58199]
[1739834727955,3.2078,2749.1,2749.0,0.58199]
[1739834728959,3.2078,2749.1,2748.8,0.00545574]
[1739834729151,3.2078,2749.1,2748.9,0.58201]
[1739834730057,3.78978,2749.1,2748.9,0.58201]
[1739834731155,3.2078,2749.1,2748.9,0.58201]
[1739834731347,3.78978,2749.1,2748.9,0.58201]
[1739834732054,3.78978,2749.1,2748.8,0.00545574]
[1739834732254,0.58202,2748.9,2748.8,0.00545574]
[1739834732452,0.58214,2748.4,2748.1,0.58218]
[1739834733154,3.2078,2748.2,2748.0,5.36456466]
[1739834733354,3.2078,2748.2,2748.0,4.78236466]
[1739834733554,3.2078,2748.2,2748.1,0.58219]
[1739834733861,3.2078,2748.2,2748.0,5.36456466]
[1739834734158,0.58219,2748.1,2748.0,0.5354]
[1739834734455,0.58219,2748.1,2747.8,3.1258204]
[1739834734657,3.2078,2748.2,2747.8,3.1258204]
[1739834734872,3.2078,2748.2,2747.9,0.58221]
[1739834735052,3.2078,2748.2,2748.0,0.58221]
[1739834735249,3.2078,2748.2,2747.9,0.58222]
[1739834735959,3.78997,2748.2,2747.9,0.58222]
[1739834736359,3.78997,2748.2,2747.8,3.1258204]
[1739834736555,3.78997,2748.2,2747.9,0.58223]
[1739834736857,0.58217,2748.2,2747.9,0.58223]
[1739834737063,3.2078,2748.2,2747.9,0.58222]
[1739834737752,3.78997,2748.2,2747.9,0.58222]
[1739834738057,3.2078,2748.2,2747.9,0.58222]
[1739834739263,3.78998,2748.2,2747.9,0.58222]
[1739834740656,3.78998,2748.2,2747.8,3.1258204]
[1739834740958,3.78998,2748.2,2748.0,0.58221]
[1739834741161,3.78998,2748.2,2747.8,3.1258204]
[1739834741455,3.2078,2748.2,2747.8,3.1258204]
[1739834741662,3.78998,2748.2,2748.0,0.5822]
[1739834742555,3.78998,2748.2,2747.8,3.1258204]
[1739834742757,3.2078,2748.2,2747.8,3.1258204]
[1739834742957,0.58219,2748.1,2747.9,0.58222]
[1739834744260,0.58219,2748.1,2747.8,3.1258204]
[1739834744466,0.58219,2748.1,2747.9,0.58222]
[1739834744964,0.58219,2748.1,2747.9,0.58221]
[1739834745165,0.58219,2748.1,2747.8,3.1258204]
[1739834745362,3.2078,2748.2,2747.8,3.1258204]
[1739834745558,3.78998,2748.2,2748.0,0.58219]
[1739834745759,3.78998,2748.2,2747.8,3.1258204]
[1739834745965,0.58219,2748.1,2748.0,0.5822]
[1739834749670,3.78999,2748.1,2748.0,0.5822]
[1739834759277,0.58219,2748.1,2748.0,0.5822]
[1739834759571,3.2078,2748.1,2747.8,3.1258204]
[1739834759772,0.58222,2748.0,2747.9,0.58222]
[1739834760367,3.2078,2748.1,2747.8,3.1258204]
[1739834760568,3.2078,2748.1,2747.9,0.58222]
[1739834760569,0.58222,2748.0,2747.9,0.58222]
[1739834762676,3.2078,2748.1,2747.9,0.58222]
[1739834762677,3.79001,2748.1,2747.9,0.58223]
[1739834762870,3.79001,2748.1,2747.8,0.00545574]
[1739834763073,3.79001,2748.1,2747.9,0.58223]
[1739834763882,3.79001,2748.1,2747.8,0.00545574]
[1739834764178,0.58221,2748.0,2747.9,0.58221]
[1739834765981,3.2078,2748.1,2747.8,0.00545574]
[1739834766183,3.79001,2748.1,2748.0,0.58221]
[1739834767083,3.2078,2748.1,2747.8,0.00545574]
[1739834767282,3.79001,2748.1,2747.9,0.58221]
[1739834768080,3.79001,2748.1,2747.8,0.00545574]
[1739834768277,0.58221,2748.0,2747.9,0.58222]
[1739834773486,3.79001,2748.0,2747.9,0.58222]
[1739834775079,3.2078,2748.0,2747.8,0.00545574]
[1739834775281,1.0845,2747.9,2747.0,2.419]
[1739834775589,0.58235,2747.4,2747.1,1.13459]
[1739834775780,0.58235,2747.4,2747.1,0.5522]
[1739834776088,1.66685,2747.4,2747.1,1.13459]
[1739834776281,3.2078,2747.2,2747.1,0.5522]
[1739834776481,0.58242,2747.1,2747.0,0.00545574]
[1739834779581,6.1908,2747.2,2746.3,3.65335743]
[1739834779887,3.79031,2746.6,2746.3,0.5275]
[1739834780079,0.5504,2746.5,2746.3,0.5275]
[1739834780684,1.13295,2746.5,2746.3,0.5275]
[1739834781990,1.13295,2746.5,2746.1,0.00545574]
[1739834782190,3.2078,2746.3,2746.1,0.58806574]
[1739834783086,3.2078,2746.3,2746.1,0.00545574]
[1739834783694,3.2078,2746.3,2746.1,0.58805574]
[1739834784194,3.2078,2746.3,2746.1,0.00545574]
[1739834784389,3.79038,2746.3,2746.1,0.00545574]
[1739834784792,3.2078,2746.3,2746.1,0.00545574]
[1739834784983,3.79038,2746.3,2746.1,0.00545574]
[1739834785183,3.2078,2746.3,2746.1,0.00545574]
[1739834785683,3.79038,2746.3,2746.1,0.00545574]
[1739834785885,3.79038,2746.3,2746.1,0.58806574]
[1739834786084,3.79038,2746.3,2746.1,0.00545574]
[1739834786280,3.2078,2746.3,2746.1,0.00545574]
[1739834786783,3.2078,2746.6,2746.1,0.00545574]
[1739834786990,3.2078,2746.6,2746.5,0.58253]
[1739834787293,3.2078,2747.1,2747.0,0.58242]
[1739834787686,5.6268,2747.3,2747.2,0.58238]
[1739834787988,3.2078,2747.3,2747.2,0.58238]
[1739834788981,3.2078,2747.3,2747.2,1.13258]
[1739834789387,0.00545574,2747.5,2747.2,0.5502]
[1739834789590,0.00545574,2747.5,2747.4,3.70819743]
[1739834791196,0.00545574,2747.5,2747.4,0.58234]
[1739834792696,0.00545574,2747.5,2747.4,3.70819743]
[1739834794598,0.00545574,2747.5,2747.4,4.00670866]
[1739834797294,0.00545574,2747.5,2747.4,6.42570866]
[1739834797894,3.2078,2748.0,2747.4,5.84336866]
[1739834798197,3.2078,2748.0,2747.9,0.58223]
[1739834800597,3.2078,2748.7,2747.9,2.418]
[1739834800902,3.2078,2748.7,2748.6,0.58209]
[1739834801601,3.2078,2748.7,2748.4,0.58211]
[1739834801907,3.78987,2748.7,2748.3,0.58214]
[1739834802503,3.2078,2748.7,2748.6,0.58209]
[1739834814007,3.2078,2748.7,2747.8,3.7313]
[1739834814211,3.2078,2748.3,2747.7,0.00545574]
[1739834814510,3.79001,2748.0,2747.7,0.58771574]
[1739834814907,3.79001,2748.0,2747.7,0.00545574]
[1739834814908,0.5323,2747.9,2747.7,0.00545574]
[1739834815812,1.11454,2747.9,2747.7,0.00545574]
[1739834816018,0.5323,2747.9,2747.7,0.58772574]
[1739834816309,0.5323,2747.9,2747.7,0.00545574]
[1739834816508,0.5323,2747.9,2747.8,0.58225]
[1739834817015,1.11453,2747.9,2747.7,0.00545574]
[1739834817317,1.11453,2747.9,2747.7,0.58772574]
[1739834817805,0.5323,2747.9,2747.8,0.58225]
[1739834818206,1.11455,2747.9,2747.7,0.00545574]
[1739834818406,1.11455,2747.9,2747.7,0.58772574]
[1739834818605,1.11455,2747.9,2747.7,0.00545574]
[1739834819013,0.5323,2747.9,2747.7,0.00545574]
[1739834819213,0.58225,2747.8,2747.7,0.00545574]
[1739834819613,0.58232,2747.5,2747.2,0.58237]
[1739834819916,0.5611,2747.4,2747.2,0.58237]
[1739834820410,0.5611,2747.4,2747.3,0.58236]
[1739834824419,0.5376,2747.5,2747.4,0.58234]
[1739834825118,1.11992,2747.5,2747.4,0.58234]
[1739834825312,0.5376,2747.5,2747.2,0.5434]
[1739834825620,1.11993,2747.5,2747.3,0.58235]
[1739834826417,1.11993,2747.5,2747.1,0.00545574]
[1739834826813,0.5376,2747.5,2747.4,0.58234]
[1739834827013,2.42245574,2747.6,2747.5,0.58232]
[1739834828218,0.00545574,2747.6,2747.5,0.58232]
[1739834829215,0.58775574,2747.6,2747.5,0.58232]
[1739834829424,0.00545574,2747.6,2747.1,0.00545574]
[1739834829719,0.58238,2747.3,2747.1,0.00545574]
[1739834829909,1.1348,2747.2,2747.1,0.00545574]
[1739834830513,1.1348,2747.2,2747.1,0.58785574]
[1739834830922,1.1348,2747.2,2747.1,0.00545574]
[1739834831115,1.1348,2747.2,2747.1,0.58785574]
[1739834831322,1.1348,2747.2,2747.1,0.00545574]
[1739834831517,1.71718,2747.2,2747.1,0.00545574]
[1739834833727,1.1348,2747.2,2747.1,0.00545574]
[1739834834722,8.6078,2747.4,2747.2,0.58237]
[1739834835123,8.6078,2747.4,2747.1,0.00545574]
[1739834835329,9.19015,2747.4,2747.1,0.58784574]
[1739834835531,8.6078,2747.4,2747.1,0.00545574]
[1739834835826,8.6078,2747.4,2747.2,0.58238]
[1739834836019,8.6078,2747.4,2747.2,0.58237]
[1739834836223,9.19015,2747.4,2747.1,0.58784574]
[1739834836420,0.58237,2747.3,2747.1,0.58784574]
[1739834836619,9.19015,2747.4,2747.1,0.58784574]
[1739834837422,5.6248,2747.4,2747.1,0.58784574]
[1739834837825,6.20715,2747.4,2747.1,0.58784574]
[1739834838021,5.6248,2747.4,2747.1,0.58784574]
[1739834838225,0.58236,2747.3,2747.1,0.58784574]
[1739834838830,6.20715,2747.4,2747.1,0.58784574]
[1739834839227,5.6248,2747.4,2747.2,0.58238]
[1739834839428,6.20714,2747.4,2747.1,0.00545574]
[1739834839621,6.20714,2747.4,2747.1,0.58784574]
[1739834839930,6.20714,2747.4,2747.2,0.58238]
[1739834840127,5.6248,2747.4,2747.2,0.58238]
[1739834840728,6.20715,2747.4,2747.2,0.58238]
[1739834840923,5.6248,2747.4,2747.1,0.00545574]
[1739834841122,0.58236,2747.3,2747.1,0.58784574]
[1739834841531,5.6248,2747.4,2747.1,0.58784574]
[1739834841731,6.20715,2747.4,2747.1,0.00545574]
[1739834842023,5.6248,2747.4,2747.2,0.58238]
[1739834842230,6.20715,2747.4,2747.2,0.58238]
[1739834843832,0.58237,2747.3,2747.1,0.58783574]
[1739834844027,5.6248,2747.4,2747.1,0.58783574]
[1739834844233,0.58238,2747.3,2747.1,0.58783574]
[1739834844641,6.20715,2747.4,2747.2,0.58238]
[1739834845034,5.6248,2747.4,2747.2,0.58238]
[1739834845232,0.58236,2747.3,2747.2,0.58238]
[1739834845433,5.6248,2747.4,2747.2,0.58238]
[1739834845434,6.20715,2747.4,2747.2,0.58238]
[1739834845742,0.58236,2747.3,2747.2,0.58238]
[1739834847036,5.6248,2747.4,2747.2,0.58238]
[1739834847529,0.58238,2747.3,2747.1,0.58783574]
[1739834847735,0.58238,2747.3,2747.2,0.58238]
[1739834848340,5.6248,2747.4,2747.1,0.00545574]
[1739834848545,0.58238,2747.2,2747.1,0.00545574]
[1739834848840,0.5825,2746.7,2746.4,3.7555]
[1739834849046,0.58247,2746.8,2746.6,0.5825]
[1739834849240,0.58249,2746.7,2746.6,0.5825]
[1739834849440,0.5606,2746.7,2746.6,0.5825]